Cogmind - Beta 16 @@@ ROGUE MODE // 2026.02.06 @ 13:16:33 Player: rootmos Result: Self-destructed Performance ------------- Evolutions (2) 1000 Regions Visited (3) 600 Robots Destroyed (7) 35 Value Destroyed (264) 264 Prototype IDs (1) 20 Alien Tech Used (0) 0 Bonus (200) 200 TOTAL SCORE: 2119 Bonus ------- Pacifist 200 Cogmind --------- Core Integrity 345/550 Matter 288/300 Energy 240/240 System Corruption 0% Temperature Cool (0) Movement Core (250) Ox4 Location -8/Materials Parts ------- > --- POWER (1) -------- Nuclear Core > --- PROPULSION (3) --- Aluminum Leg > --- UTILITY (5) ------ Small Storage Unit > --- WEAPON (2) ------- Assault Rifle Light Assault Rifle > --- INVENTORY (8) ---- Nuclear Core Nuclear Core Sensor Array Peak State ------------ > --- POWER ------------ Nuclear Core > --- PROPULSION ------- Aluminum Leg Aluminum Leg > --- UTILITY ---------- Small Storage Unit > --- WEAPON ----------- Improved EM Shotgun Battle Rifle > --- INVENTORY -------- Ion Engine Light Ion Engine Nuclear Core Light Treads Sensor Array Assault Rifle Light Assault Rifle Subdweller Machine Gun [Rating: 12] Favorites ----------- Power Light Ion Engine Engine Light Ion Engine Power Core Nuclear Core Propulsion Aluminum Leg Treads Light Treads Leg Aluminum Leg Utility Small Storage Unit Device Sensor Array Storage Small Storage Unit Weapon Assault Rifle Energy Gun Medium Laser Ballistic Gun Assault Rifle Build | -11 -10 -10 -8 ------- Run | Yrd Mat Sub Mat Slots Evolved 4 | . . . 4 Power . | . . . . Propulsion 1 | . . . 1 Utility 3 | . . . 3 Weapon . | . . . . Parts Attached 12 | . 2 1 9 Power 2 | . . . 2 Engine . | . . . . Core 2 | . . . 2 Reactor . | . . . . Propulsion 3 | . . . 3 Treads 1 | . . . 1 Leg 2 | . . . 2 Wheel . | . . . . Hover . | . . . . Flight . | . . . . Utility 1 | . 1 . . Device 1 | . 1 . . Storage . | . . . . Processor . | . . . . Hackware . | . . . . Protection . | . . . . Artifact . | . . . . Weapon 6 | . 1 1 4 Energy Gun 2 | . 1 . 1 Energy Cannon . | . . . . Ballistic Gun 4 | . . 1 3 Ballistic Cannon . | . . . . Launcher . | . . . . Special Weapon . | . . . . Impact Weapon . | . . . . Slashing Weapon . | . . . . Piercing Weapon . | . . . . Special Melee Weapon . | . . . . Unidentified Prototypes 1 | . . . 1 Parts Lost 9 | . . 1 8 Power 1 | . . . 1 Propulsion 4 | . . . 4 Utility 1 | . . 1 . Weapon 3 | . . . 3 Highest Loss Streak 8 | . . 1 8 To Critical Strikes . | . . . . Average Backups 5 | . 4 5 6 Power 1 | . 1 1 2 Propulsion . | . 1 1 . Utility . | . . 1 1 Weapon 2 | . 1 2 2 Tool/Special . | . . . . Unused Backups 14 | . 8 . 6 Power 4 | . 1 . 3 Propulsion 7 | . 5 . 2 Utility 2 | . 1 . 1 Weapon 1 | . 1 . . Tool/Special . | . . . . Average Slot Usage (%) 73 | . 98 97 51 Engine 6 | . 14 14 . Core 4 | . . . 7 Leg 21 | . 28 28 14 Device 5 | . 12 11 . Storage 11 | . 14 14 9 Energy Gun 7 | . 9 14 5 Ballistic Gun 14 | . 18 14 12 Peak Build Rating 12 | . 7 8 12 Average Rating 8 | . 6 7 10 On Entrance 6 | 6 6 7 7 Avg Prop Armor Cover (%) 9 | . . . 9 Naked Turns . | . . . . Heaviest Build 18 | 12 13 13 18 Greatest Support 20 | 20 20 20 20 Greatest Overweight (x) 4 | . . . 4 Average Overweight (x) . | . . . . Largest Inventory Capacity 8 | . 8 8 8 Average Capacity 8 | . 8 8 8 Most Carried 8 | . 7 6 8 Average Carried 5 | . 4 5 6 Final Capacity 8 | 8 8 8 8 Final Carried 6 | 6 5 6 3 Class Distribution -------------------- 100% | Mutant Dominant Class ---------------- Mutant | -10/Materials Mutant | -10/Subcaves Mutant | -8/Materials Resources | -11 -10 -10 -8 ----------- Run | Yrd Mat Sub Mat Matter Collected 377 | 200 . . 177 Remotely . | . . . . Salvage Created 294 | . . . 294 Parts 13 | . . . 13 Haulers Intercepted . | . . . . Recyclers Shooed . | . . . . Parts Field Recycled . | . . . . Retrieved Matter . | . . . . Parts Self-Destructed . | . . . . Prevented . | . . . . Parts Restored . | . . . . Kills | -11 -10 -10 -8 ------- Run | Yrd Mat Sub Mat Combat Hostiles Destroyed 6 | . . . 6 Guns 6 | . . . 6 Classes Destroyed 3 | . . . 3 Operator 1 | . . . 1 Swarmer 1 | . . . 1 Grunt 5 | . . . 5 Best Kill Streak 4 | . . . 4 Combat Bots Only 3 | . . . 3 Max Kills in Single Turn 1 | . . . 1 Gunslinging . | . . . . Exploded . | . . . . Melee . | . . . . Uniques/NPCs Destroyed . | . . . . Combat | -11 -10 -10 -8 -------- Run | Yrd Mat Sub Mat Hostile Shots Fired 127 | . . 8 119 Missed 30 | . . 1 29 Hits 97 | . . 7 90 Projectile 97 | . . 7 90 Critical Strikes 2 | . . . 2 Damage Taken 1379 | . . 177 1202 Core 236 | . . 31 205 Absorbed by Shields . | . . . . Core Remaining (%) 93 | 100 . 87 . Volleys Fired 31 | . . . 31 Largest 2 | . . . 2 Hottest 70 | . . . 70 Shots Fired 56 | . . . 56 Gun 56 | . . . 56 Cannon . | . . . . Launcher . | . . . . Special . | . . . . Kinetic 48 | . . . 48 Thermal . | . . . . Explosive . | . . . . Electromagnetic 8 | . . . 8 Robot Hit Streak 8 | . . . 8 Robot Miss Streak 3 | . . . 3 Penetration Max . | . . . . Secondary Targets 2 | . . . 2 Max Gunslinging Chain 1 | . . . 1 Shots Hit Robots 37 | . . . 37 Core Hits 19 | . . . 19 Critical Kills . | . . . . Critical Parts Destroyed 1 | . . . 1 Critical Strikes 1 | . . . 1 Destroy 1 | . . . 1 Melee Attacks . | . . . . Impact . | . . . . Slashing . | . . . . Piercing . | . . . . Sneak Attacks . | . . . . Combat Hostiles . | . . . . Follow-up Attacks . | . . . . Damage Inflicted 663 | . . . 663 Guns 663 | . . . 663 Cannons . | . . . . Explosions . | . . . . Melee . | . . . . Ramming . | . . . . Kinetic 547 | . . . 547 Thermal . | . . . . Explosive . | . . . . Electromagnetic 116 | . . . 116 Impact . | . . . . Slashing . | . . . . Piercing . | . . . . Highest Corruption . | . . . . Average Corruption . | . . . . Corruption Purged . | . . . . Corruption Blocked . | . . . . Overload Shots . | . . . . Overflow Damage . | . . . . Projectiles . | . . . . Explosions . | . . . . Melee . | . . . . Knockbacks . | . . . . Impact . | . . . . Kinetic . | . . . . Secondary . | . . . . Self-Inflicted Damage . | . . . . Shots . | . . . . Rammed . | . . . . Targets Rammed . | . . . . Kicked . | . . . . Crushed . | . . . . Highest Temperature 93 | . . . 93 Average Temperature 33 | . . . 33 Received Heat Transfer 648 | . . 36 612 Siege Activations . | . . . . Martial Activations . | . . . . Shielding Activations . | . . . . Robots Disrupted . | . . . . Combat Hostiles . | . . . . Robots Corrupted . | . . . . Combat Hostiles . | . . . . Parts Fried 1 | . . . 1 Impact Corruptions . | . . . . Robots Melted . | . . . . Combat Hostiles . | . . . . Parts Melted 1 | . . . 1 Heat Transferred . | . . . . Parts Sabotaged . | . . . . Parts Stolen . | . . . . Parts Stripped . | . . . . Power Chain Reactions . | . . . . Alert | -11 -10 -10 -8 ------- Run | Yrd Mat Sub Mat Maximum Alert Level . | . . . . Low Security (%) 100 | . 100 . 100 Level 1 . | . . . . Level 2 . | . . . . Level 3 . | . . . . Level 4 . | . . . . Level 5 . | . . . . High Security . | . . . . Max Security . | . . . . Peak Influence 80 | . . . 80 Initial . | . . . . Average 6 | . . . 11 Influence Increases 175 | . . . 175 Destroy 0b10 Robot/C 120 | . . . 120 Destroy 0b10 Robot/NC 5 | . . . 5 Destroy Leader 20 | . . . 20 Lose Combat Pursuer 30 | . . . 30 Influence Decreases 105 | . . . 105 Time Decay 50 | . . . 50 Lost Part 55 | . . . 55 Squads Dispatched 3 | . 1 . 2 Investigation 1 | . 1 . . Extermination . | . . . . Reinforcement 1 | . . . 1 Assault . | . . . . Garrison 1 | . . . 1 Intercept . | . . . . Searches Triggered . | . . . . Construction Impeded . | . . . . Haulers Reinforced . | . . . . Active Scanning Responses . | . . . . Cargo Convoy Interrupts . | . . . . Stealth | -11 -10 -10 -8 --------- Run | Yrd Mat Sub Mat Distress Signals 2 | . . . 2 Communications Jammed . | . . . . Distress Signals . | . . . . Times Spotted 15 | . . 2 13 Peak Tracking Total 8 | . . 2 8 Tactical Retreats 1 | . . . 1 Traps | -11 -10 -10 -8 ------- Run | Yrd Mat Sub Mat Traps Triggered 1 | . 1 . . Indirectly . | . . . . Trap Hack Attempts . | . . . . Triggered . | . . . . Disarmed . | . . . . Reprogrammed . | . . . . Reused . | . . . . Traps Extracted . | . . . . Installed . | . . . . Triggered . | . . . . Machines | -11 -10 -10 -8 ---------- Run | Yrd Mat Sub Mat Machines Disabled . | . . . . Max in Single Turn . | . . . . Machines Repaired . | . . . . Machines Dismantled . | . . . . Machines Sabotaged . | . . . . Overloaded Fab Kills . | . . . . Hacking | -11 -10 -10 -8 --------- Run | Yrd Mat Sub Mat Machines Accessed 2 | . 2 . . Terminals 2 | . 2 . . Fabricators . | . . . . Repair Stations . | . . . . Recycling Units . | . . . . Scanalyzers . | . . . . Garrison Access . | . . . . Total Hacks 3 | . 3 . . Successful 1 | . 1 . . Failed 2 | . 2 . . Catastrophic 1 | . 1 . . Database Lockouts . | . . . . Manual . | . . . . Terminals 3 | . 3 . . Fabricators . | . . . . Repair Stations . | . . . . Recycling Units . | . . . . Scanalyzers . | . . . . Garrison Access . | . . . . Terminal Hacks 1 | . 1 . . Zone Layout 1 | . 1 . . Fabricator Hacks . | . . . . Repair Station Hacks . | . . . . Recycling Unit Hacks . | . . . . Scanalyzer . | . . . . Garrison Access Hacks . | . . . . Unauthorized Hacks . | . . . . Terminals . | . . . . Fabricators . | . . . . Repair Stations . | . . . . Recycling Units . | . . . . Scanalyzers . | . . . . Garrison Access . | . . . . Data Cores Recovered . | . . . . Used . | . . . . Hacking Detections 2 | . 2 . . Full Trace Events . | . . . . Feedback Events . | . . . . Feedback Blocked . | . . . . Robot Schematics Acquired . | . . . . Robots Built . | . . . . Authchips . | . . . . Time . | . . . . Total Robot Build Rating . | . . . . Part Schematics Acquired . | . . . . Parts Built . | . . . . Authchips . | . . . . Time . | . . . . Total Part Build Rating . | . . . . Part Studies Acquired . | . . . . Parts Repaired . | . . . . Time . | . . . . Parts Recycled . | . . . . Recycled Matter . | . . . . Retrieved Matter . | . . . . Retrieved Components . | . . . . Parts Scanalyzed . | . . . . Part Schematics Acquired . | . . . . Parts Damaged . | . . . . Bothacking | -11 -10 -10 -8 ------------ Run | Yrd Mat Sub Mat Used RIF Installer . | . . . . Robots Hacked . | . . . . Non-combat . | . . . . Combat . | . . . . Robot Hacks Applied . | . . . . Relay Couplers Released . | . . . . Fabnet Peak Effective % . | . . . . Robots Rewired . | . . . . Allies Hacked . | . . . . Hacks Repelled . | . . . . Allies | -11 -10 -10 -8 -------- Run | Yrd Mat Sub Mat Total Allies . | . . . . Largest Group . | . . . . Highest-Rated Group . | . . . . Highest-Rated Ally . | . . . . Total Orders . | . . . . Ally Attacks . | . . . . Total Damage . | . . . . Kills . | . . . . Allies Corrupted . | . . . . Allies Melted . | . . . . Intel | -11 -10 -10 -8 ------- Run | Yrd Mat Sub Mat Active Infowar (turns) 185 | . 151 34 . Sensors 185 | . 151 34 . Robot Analysis Total . | . . . . Derelict Logs Recovered . | . . . . Drone Launches . | . . . . Drone Recoveries . | . . . . Exploration | -11 -10 -10 -8 ------------- Run | Yrd Mat Sub Mat Turns Passed 430 | . 160 39 231 Spaces Moved 252 | 1 127 31 93 Core 9 | . . . 9 Treads 5 | . . . 5 Legs 238 | 1 127 31 79 Wheels . | . . . . Hover . | . . . . Flight . | . . . . Fastest Speed 120 | 120 120 120 120 Average Speed 125 | 120 120 120 136 Slowest Speed 250 | 120 120 120 250 Overloaded Moves . | . . . . Propulsion Burnouts . | . . . . Robots Hopped . | . . . . Potential Cave-ins . | . . . . Cave-ins Triggered . | . . . . Exploration Rate (%) 7 | 2 16 2 11 Regions Visited 3 Branch Regions 1 Pre-discovered Areas . | . . . . Known Exits Taken . | . . . . Unknown Exits Taken 3 | 1 1 1 . Scrap Searched . | . . . . Spaces Dug . | . . . . Terrain Destroyed . | . . . . Melee . | . . . . Projectile . | . . . . AOE . | . . . . Terrain Rammed . | . . . . Walls Destroyed . | . . . . Machines Disabled . | . . . . Actions | -11 -10 -10 -8 --------- Run | Yrd Mat Sub Mat Total 313 | . 135 32 146 Wait 8 | . . . 8 Move 249 | . 126 30 93 Hop . | . . . . Pick Up 7 | . 3 1 3 Fast Attach 3 | . 1 . 2 Attach 5 | . . . 5 Detach . | . . . . Swap 4 | . 1 1 2 Drop 6 | . 4 . 2 Fire 31 | . . . 31 Melee . | . . . . Ram . | . . . . Kick . | . . . . Crush . | . . . . Escape Stasis . | . . . . Rewire . | . . . . Trap . | . . . . Miscellaneous . | . . . . Route ------- -11/Scrapyard -10/Materials (discovered 2 exits: [Min] / [*Sub]) -10/Subcaves -8/Materials History --------- Turn | Location | Event 1 | -11/Scrapyard | Discovered new exit (range 0) 1 | -11/Scrapyard | Entered Materials 43 | -10/Materials | Discovered new exit (range 16) 155 | -10/Materials | Discovered new exit (range 5) 161 | -10/Materials | Entered Subcaves 161 | -10/Subcaves | Discovered new exit (range 7) 162 | -10/Subcaves | Approached by a straggling Scientist 165 | -10/Subcaves | Shifting Twisted Machinery released Battle Rifle 168 | -10/Subcaves | Shifting Twisted Machinery released Sub. Machine Gun 184 | -10/Subcaves | Ambushed by Subdwellers from Twisted Machinery 200 | -10/Subcaves | Entered Materials 200 | -8/Materials | Evolved 4 slots: Propulsion x1, Utility x3 312 | -8/Materials | Build established: Mutant 355 | -8/Materials | Garrison activated, responded to threat 424 | -8/Materials | Lost 8 parts (1p4n3w) 431 | -8/Materials | Self-destructed Last Messages --------------- 00390_ Battle Rifle destroyed. 00391_ U-05 Engineer works on Material Compactor. 00391_ Acquired 59 matter. 00392_ Aluminum Leg destroyed. 00393_ Lgt. Treads destroyed. 00393_ Critical hit (Burn: +37). 00393_ G-47 Trooper destroyed. 00393_ Acquired 19 matter. 00394_ M-13 Machinist repairs S-10 Pest. 00396_ U-05 Engineer works on Material Compactor. 00404_ Lgt. Ion Engine melted. 00404_ S-10 Pest destroyed. 00407_ U-05 Engineer works on Material Compactor. 00413_ G-47 Trooper destroyed. 00426_ Acquired 13 matter. 00429_ R-06 Scavenger collects Flight Unit. 00430_ K-01 Serf collects debris. Map ----- +----------------------------------------------------+ | ?????????????????????????????????????????????????? | | ?????????????????????????????????????????????????? | | ?????????????????????????????????????????????????? | | ?????????????????????????????????????????????????? | | ?????????????????????????????????????????????????? | | ?????????????????????????#???????????????????????? | | ????????????????????????? ???????????????????????? | | ????????????????????????? ???????????????????????? | | ????????????????????????? ???????????????????????? | | ????????????????????????? ???????????????????????? | | ????????????????????????? ???????????????????????? | | ????????????????????????# #??????????????????????? | | ????????????????????????# ########### #??????????? | | ????????????????????????# #??????????? | | ????????????????????????# #??????????? | | ????????????????????????# " ! #??????????? | | ????????????????????????#u #??????????? | | ????????????????????????# #??????????? | | ????????????????????????# ] #??????????? | | ????????????????????????# ????????? | | ????????????????????????# ########???????????????? | | ????????????????????????# #??????????????????????? | | ????????????????????????# #??????????????????????? | | ????????????????????????#u#######????????????????? | | ????????????????????????# "m= ####?????????????? | | ????????????????????????#@ru*= + +?????????????? | | ????????????????????????# ! %! # #?????????????? | | ????????????????????????#%[<<< k# #####+##??????? | | ????????????????????????# <<<<< # ?????? | | ????????????????????????# <<<<< + ?????? | | ????????????????????????# <<